bitfinex-derivatives/quotes_BTCF0:USTF0_20241009
["timestamp","ask_amount","ask_price","bid_price","bid_amount"]
[1728468782129,0.70754924,62250.0,62249.0,0.001]
[1728468783636,0.70754869,62250.0,62249.0,0.001]
[1728468784634,0.66818,62250.0,62249.0,0.001]
[1728468784937,0.7075488,62250.0,62249.0,0.001]
[1728468785730,0.561173,62250.0,62249.0,0.04908149]
[1728468786138,0.200373,62250.0,62249.0,0.04908149]
[1728468787023,0.200373,62250.0,62249.0,0.12945549]
[1728468787731,0.200373,62250.0,62249.0,0.001]
[1728468787732,0.320373,62250.0,62249.0,0.001]
[1728468787932,0.320373,62250.0,62249.0,0.04909287]
[1728468788839,0.320373,62250.0,62249.0,0.04909377]
[1728468789643,0.681173,62250.0,62249.0,0.04909377]
[1728468790856,0.681173,62250.0,62249.0,0.001]
[1728468792742,0.73052073,62250.0,62249.0,0.001]
[1728468793635,0.73052099,62250.0,62249.0,0.001]
[1728468794369,0.7881835,62250.0,62249.0,0.001]
[1728468795942,0.12,62250.0,62249.0,0.081374]
[1728468796350,0.0037,62253.0,62252.0,0.08037]
[1728468796558,0.11,62253.0,62252.0,0.20037]
[1728468796760,0.190369,62253.0,62252.0,0.20037]
[1728468797248,0.22973729,62253.0,62252.0,0.20037]
[1728468797555,0.23473729,62253.0,62252.0,0.20037]
[1728468798551,0.2347362,62253.0,62252.0,0.20037]
[1728468800448,0.15136949,62253.0,62252.0,0.20037]
[1728468800655,0.005,62253.0,62252.0,0.20037]
[1728468801470,0.085369,62253.0,62252.0,0.20037]
[1728468801754,0.085369,62253.0,62252.0,0.24846377]
[1728468802358,0.085369,62253.0,62252.0,0.20037]
[1728468802749,0.005,62253.0,62252.0,0.20037]
[1728468814655,0.0037,62256.0,62255.0,0.080367]
[1728468814862,0.0037,62259.0,62258.0,0.080363]
[1728468815058,0.084058,62262.0,62261.0,0.080359]
[1728468815361,0.080358,62262.0,62261.0,0.200359]
[1728468815758,0.16905018,62262.0,62261.0,0.200359]
[1728468815950,0.22669595,62262.0,62261.0,0.200359]
[1728468816255,0.14633795,62262.0,62261.0,0.200359]
[1728468816456,0.08869218,62262.0,62261.0,0.200359]
[1728468816659,0.14633795,62262.0,62261.0,0.200359]
[1728468816860,0.15733795,62262.0,62261.0,0.200359]
[1728468817055,0.19205018,62262.0,62261.0,0.200359]
[1728468817261,0.24969595,62262.0,62261.0,0.200359]
[1728468820363,0.24969595,62262.0,62261.0,0.080359]
[1728468820555,0.080361,62259.0,62258.0,0.441163]
[1728468820757,0.28905318,62259.0,62258.0,0.3608]
[1728468821066,0.34669895,62259.0,62258.0,0.3608]
[1728468822659,0.200361,62259.0,62258.0,0.3608]
[1728468823067,0.209361,62259.0,62258.0,0.3608]
[1728468823269,0.080367,62255.0,62254.0,0.080367]
[1728468824566,0.089367,62255.0,62254.0,0.080367]
[1728468825873,0.189367,62255.0,62254.0,0.080367]
[1728468830795,0.33572232,62255.0,62254.0,0.080367]
[1728468831478,0.33572232,62255.0,62254.0,0.200367]
[1728468831898,0.51240302,62255.0,62254.0,0.200367]
[1728468832873,0.33572232,62255.0,62254.0,0.200367]
[1728468833976,0.51240988,62255.0,62254.0,0.200367]
[1728468834674,0.33572232,62255.0,62254.0,0.200367]
[1728468834878,0.4547593,62255.0,62254.0,0.200367]
[1728468835179,0.27806971,62255.0,62254.0,0.200367]
[1728468836569,0.09770271,62255.0,62254.0,0.200367]
[1728468836970,0.16962399,62255.0,62254.0,0.200367]
[1728468837576,0.2583267,62255.0,62254.0,0.200367]
[1728468837777,0.009,62255.0,62254.0,0.200367]
[1728468838384,0.009,62255.0,62254.0,0.561167]
[1728468838780,0.009,62255.0,62254.0,0.64149254]
[1728468839178,0.009,62255.0,62254.0,0.561167]
[1728468840476,0.009,62255.0,62254.0,0.64149254]
[1728468840675,0.009,62255.0,62254.0,0.561167]
[1728468840877,0.009,62255.0,62254.0,0.64149254]
[1728468841085,0.009,62255.0,62254.0,0.561167]
[1728468841378,0.009,62255.0,62254.0,0.64149254]
[1728468841883,0.009,62255.0,62254.0,0.28069254]
[1728468842082,0.009,62255.0,62254.0,0.200367]
[1728468845875,0.089367,62255.0,62254.0,0.200367]
[1728468848781,0.089367,62255.0,62254.0,0.561167]
[1728468851777,0.089367,62255.0,62254.0,0.200367]
[1728468851974,0.009,62255.0,62254.0,0.200367]
[1728468853384,0.09769747,62255.0,62254.0,0.200367]
[1728468853882,0.15534668,62255.0,62254.0,0.200367]
[1728468855187,0.04836106,62255.0,62254.0,0.200367]
[1728468859788,0.0037,62262.0,62254.0,0.561167]
[1728468859982,0.0328,62270.0,62262.0,0.080358]
[1728468859983,0.00240996,62263.0,62262.0,0.080358]
[1728468861187,0.01540996,62263.0,62262.0,0.080358]
[1728468862897,0.02740996,62263.0,62262.0,0.081358]
[1728468863191,0.08505258,62263.0,62262.0,0.081358]
[1728468864989,0.13438321,62263.0,62262.0,0.1103416]
[1728468867899,0.02740996,62263.0,62262.0,0.1103416]
[1728468882911,0.13438265,62263.0,62262.0,0.1103416]
[1728468883816,0.07674041,62263.0,62262.0,0.1103416]
[1728468886219,0.07674041,62263.0,62262.0,0.4711416]
[1728468889911,0.02740996,62263.0,62262.0,0.4711416]
[1728468894331,0.02740996,62263.0,62262.0,0.51926058]
[1728468897915,0.02740996,62263.0,62262.0,0.4711416]
[1728468900608,0.105356,62263.0,62262.0,0.001]
[1728468900916,0.257456,62263.0,62262.0,0.001]
[1728468904825,0.36444583,62263.0,62262.0,0.001]
[1728468905028,0.72524584,62263.0,62262.0,0.001]
[1728468905215,0.93427126,62263.0,62262.0,0.001]
[1728468905720,0.72524584,62263.0,62262.0,0.001]
[1728468907621,0.75368466,62263.0,62262.0,0.001]
[1728468908138,0.39288466,62263.0,62262.0,0.001]
[1728468908425,0.75368466,62263.0,62262.0,0.001]
[1728468912928,0.85572024,62263.0,62262.0,0.001]
[1728468913525,0.64669482,62263.0,62262.0,0.001]
[1728468916429,0.28589482,62263.0,62262.0,0.001]
[1728468916626,0.64669482,62263.0,62262.0,0.001]
[1728468918331,1.72853482,62263.0,62262.0,0.001]
[1728468920036,1.8355299,62263.0,62262.0,0.001]
[1728468923737,1.2355299,62263.0,62262.0,0.001]
[1728468923940,0.8747299,62263.0,62262.0,0.001]
[1728468924133,1.2355299,62263.0,62262.0,0.001]
[1728468924644,1.18618913,62263.0,62262.0,0.001]
[1728468924837,1.23553033,62263.0,62262.0,0.001]
[1728468925135,0.75369033,62263.0,62262.0,0.001]
[1728468925545,1.23553033,62263.0,62262.0,0.001]
[1728468926030,0.39289033,62263.0,62262.0,0.001]
[1728468926228,0.75369033,62263.0,62262.0,0.001]
[1728468927943,0.64669482,62263.0,62262.0,0.001]
[1728468928442,0.080361,62259.0,62258.0,0.0037]
[1728468928743,0.080361,62259.0,62254.0,0.0037]
[1728468928744,0.080367,62255.0,62254.0,0.0037]
[1728468928939,0.08037,62252.0,62251.0,0.04813368]
[1728468929140,0.08037,62252.0,62247.0,0.0037]
[1728468929141,0.080373,62250.0,62249.0,0.04813368]
[1728468929342,0.320373,62250.0,62249.0,0.04813368]
[1728468929758,0.080374,62249.0,62248.0,0.04813368]
[1728468929933,0.561174,62249.0,62248.0,0.04813368]
[1728468930132,0.080376,62248.0,62247.0,0.04813368]
[1728468930349,0.080378,62246.0,62245.0,0.00240965]
[1728468930544,0.080378,62246.0,62245.0,0.05050482]
[1728468932247,0.081378,62246.0,62245.0,0.05309517]
[1728468932547,0.081378,62246.0,62245.0,0.05308535]
[1728468932943,0.082378,62246.0,62245.0,0.05808535]
[1728468934648,0.082378,62246.0,62245.0,0.01]
[1728468940446,0.202378,62246.0,62245.0,0.01]
[1728468943066,0.16215503,62246.0,62245.0,0.13251917]
[1728468946656,0.16215503,62246.0,62245.0,0.22890982]
[1728468947560,0.16215503,62246.0,62245.0,0.13251917]
[1728468947952,0.16215503,62246.0,62245.0,0.22890982]
[1728468948353,0.16215503,62246.0,62245.0,0.13251917]
[1728468949060,0.16215503,62246.0,62245.0,0.21289817]
[1728468949256,0.16215503,62246.0,62245.0,0.30928882]
[1728468949459,0.16215503,62246.0,62245.0,0.30928892]
[1728468950158,0.21150362,62246.0,62245.0,0.090379]
[1728468954164,0.37212302,62246.0,62245.0,0.090379]
[1728468954352,0.37212161,62246.0,62245.0,0.090379]
[1728468955159,0.21150221,62246.0,62245.0,0.090379]
[1728468955568,0.37214805,62246.0,62245.0,0.090379]
[1728468955768,0.21150221,62246.0,62245.0,0.090379]
[1728468956069,0.37217302,62246.0,62245.0,0.090379]
[1728468956564,0.17134718,62246.0,62245.0,0.090379]
[1728468957086,0.33205516,62246.0,62245.0,0.090379]
[1728468957458,0.17134718,62246.0,62245.0,0.090379]
[1728468957958,0.122,62246.0,62245.0,0.21289194]
[1728468958164,0.06569071,62246.0,62245.0,0.36201102]
[1728468958965,0.06569071,62246.0,62245.0,0.36201748]
[1728468960763,0.14607671,62246.0,62245.0,0.36201748]
[1728468962759,0.14607671,62246.0,62245.0,0.36202377]
[1728468964973,0.14607671,62246.0,62245.0,0.090379]
[1728468968867,0.14607671,62246.0,62245.0,0.01]
[1728468969399,0.14607671,62246.0,62245.0,0.090388]
[1728468969575,0.14607671,62246.0,62245.0,0.15465263]
[1728468973104,0.25309014,62246.0,62245.0,0.090388]
[1728468977577,0.25309019,62246.0,62245.0,0.090388]
[1728468980180,0.14607671,62246.0,62245.0,0.15465263]
[1728468980373,0.14607671,62246.0,62245.0,0.090388]
[1728468993308,0.080379,62252.0,62251.0,0.080379]
[1728468994487,0.080379,62252.0,62251.0,0.081379]
[1728468994795,0.080379,62252.0,62251.0,0.12955476]
[1728468994990,0.080379,62252.0,62251.0,0.081379]
[1728468995191,0.18738374,62252.0,62251.0,0.081379]
[1728468995395,0.18738374,62252.0,62251.0,0.082379]
[1728468996391,0.10700474,62252.0,62251.0,0.082379]
[1728468996619,0.16077122,62252.0,62251.0,0.082379]
[1728468996790,0.04934523,62252.0,62251.0,0.082379]
[1728468997190,0.04934053,62252.0,62251.0,0.082379]
[1728468999408,0.04934053,62252.0,62251.0,0.11085646]
[1728468999600,0.441172,62257.0,62256.0,0.080373]
[1728468999789,0.49051134,62257.0,62256.0,0.200373]
[1728469000588,0.13371134,62257.0,62256.0,0.200373]
[1728469001896,0.13771134,62257.0,62256.0,0.200373]
[1728469003239,0.088372,62257.0,62256.0,0.200373]
[1728469003500,0.008,62257.0,62256.0,0.200373]
[1728469010497,0.16834373,62257.0,62256.0,0.200373]
[1728469010696,0.34519286,62257.0,62256.0,0.200373]
[1728469010893,0.29183432,62257.0,62256.0,0.200373]
[1728469011094,0.23418534,62257.0,62256.0,0.200373]
[1728469011296,0.18484913,62257.0,62256.0,0.200373]
[1728469011511,0.23418534,62257.0,62256.0,0.200373]
[1728469012097,0.23418536,62257.0,62256.0,0.200373]
[1728469013209,0.11498521,62257.0,62256.0,0.200373]
[1728469014194,0.05733623,62257.0,62256.0,0.200373]
[1728469014797,0.008,62257.0,62256.0,0.200373]
[1728469014993,0.05733623,62257.0,62256.0,0.200373]
[1728469016406,0.18439941,62257.0,62256.0,0.200373]
[1728469016908,0.23373564,62257.0,62256.0,0.200373]
[1728469017298,0.05733623,62257.0,62256.0,0.200373]
[1728469018203,0.008,62257.0,62256.0,0.200373]
[1728469018605,0.008,62257.0,62256.0,0.26462454]
[1728469021615,0.008,62257.0,62256.0,0.200373]
[1728469025511,0.008,62257.0,62256.0,0.080373]
[1728469026010,0.008,62257.0,62256.0,0.200373]
[1728469026711,0.05733686,62257.0,62256.0,0.200373]
[1728469033117,0.18439941,62257.0,62256.0,0.200373]
[1728469033307,0.18439941,62257.0,62256.0,0.32285937]
[1728469033308,0.008,62257.0,62256.0,0.32285937]
[1728469033507,0.112065,62263.0,62262.0,0.080366]
[1728469033720,0.112065,62263.0,62262.0,0.200366]
[1728469034804,0.122065,62263.0,62262.0,0.201366]
[1728469035410,0.133065,62263.0,62262.0,0.202366]
[1728469038310,0.133065,62263.0,62262.0,0.23068357]
[1728469040421,0.24004594,62263.0,62262.0,0.23068357]
[1728469045317,0.24004656,62263.0,62262.0,0.23068357]
[1728469048417,0.133065,62263.0,62262.0,0.23068357]
[1728469048622,0.133065,62263.0,62262.0,0.29485102]
[1728469049511,0.133065,62263.0,62262.0,0.06616745]
[1728469049711,0.133065,62263.0,62262.0,0.04613604]
[1728469049712,0.714905,62263.0,62262.0,0.04613604]
[1728469049912,0.080367,62261.0,62260.0,0.04613604]
[1728469050120,0.080373,62256.0,62254.0,0.06786745]
[1728469050324,0.080376,62254.0,62250.0,0.14454845]
[1728469050553,0.032,62253.0,62250.0,0.080381]
[1728469050813,0.032,62253.0,62249.0,0.01848956]
[1728469050814,0.080381,62250.0,62249.0,0.01848956]
[1728469051117,0.551181,62250.0,62249.0,0.01848956]
[1728469051727,0.551181,62250.0,62249.0,0.09887156]
[1728469053522,0.551181,62250.0,62249.0,0.10487156]
[1728469054522,0.551181,62250.0,62249.0,0.02208]
[1728469054832,0.551181,62250.0,62249.0,0.02204]
[1728469058834,0.190381,62250.0,62249.0,0.02204]
[1728469059021,0.551181,62250.0,62249.0,0.02204]
[1728469061166,0.551181,62250.0,62249.0,0.102422]
[1728469061728,0.190381,62250.0,62249.0,0.102422]
[1728469061926,0.551181,62250.0,62249.0,0.102422]
[1728469063042,0.190381,62250.0,62249.0,0.102422]
[1728469063337,0.23972724,62250.0,62249.0,0.102422]
[1728469063533,0.76126632,62250.0,62249.0,0.102422]
[1728469063735,0.60052724,62250.0,62249.0,0.102422]
[1728469064633,0.77734023,62250.0,62249.0,0.102422]
[1728469064836,0.77733995,62250.0,62249.0,0.102422]
[1728469065139,0.60052696,62250.0,62249.0,0.102422]
[1728469067235,0.23972696,62250.0,62249.0,0.102422]
[1728469067637,0.60052696,62250.0,62249.0,0.102422]
[1728469068233,0.23972696,62250.0,62249.0,0.102422]
[1728469068449,0.60052696,62250.0,62249.0,0.102422]
[1728469068940,0.23972696,62250.0,62249.0,0.102422]
[1728469069243,0.60052696,62250.0,62249.0,0.102422]
[1728469070234,0.65818764,62250.0,62249.0,0.102422]
[1728469070440,0.551181,62250.0,62249.0,0.102422]
[1728469072442,0.190381,62250.0,62249.0,0.102422]
[1728469072642,0.551181,62250.0,62249.0,0.102422]
[1728469079543,0.551181,62250.0,62249.0,0.02204]
[1728469081572,0.551181,62250.0,62249.0,0.102422]
[1728469083249,0.551181,62250.0,62249.0,0.134322]
[1728469084752,0.3608,62251.0,62249.0,0.11810745]
[1728469084954,0.441181,62251.0,62250.0,0.20038]
[1728469085456,0.54818759,62251.0,62250.0,0.20038]
[1728469086952,0.57640816,62251.0,62250.0,0.20038]
[1728469087148,0.57640816,62251.0,62250.0,0.20238]
[1728469087345,0.57640816,62251.0,62250.0,0.20438]
[1728469088662,0.54818759,62251.0,62250.0,0.20438]
[1728469089161,0.46780659,62251.0,62250.0,0.20438]
[1728469089361,0.46780659,62251.0,62250.0,0.23468]
[1728469089555,0.64472343,62251.0,62250.0,0.23468]
[1728469090154,0.46780659,62251.0,62250.0,0.23468]
[1728469092462,0.3608,62251.0,62250.0,0.23468]
[1728469093258,0.3608,62251.0,62250.0,0.29889555]
[1728469096164,0.3608,62251.0,62250.0,0.29889655]
[1728469100268,0.44118,62251.0,62250.0,0.29889655]
[1728469100469,0.54818487,62251.0,62250.0,0.234681]
[1728469104957,0.54818487,62251.0,62250.0,0.204381]
[1728469107579,0.44118,62251.0,62250.0,0.26859655]
[1728469107865,0.08038,62251.0,62250.0,0.26859655]
[1728469108071,0.44118,62251.0,62250.0,0.204381]
[1728469108270,0.44118,62251.0,62250.0,0.26859655]
[1728469111177,0.44118,62251.0,62250.0,0.14859655]
[1728469115178,0.44118,62251.0,62250.0,0.06821555]
[1728469115683,0.65819088,62251.0,62250.0,0.004]
[1728469118273,0.60884282,62251.0,62250.0,0.004]
[1728469118577,0.6581931,62251.0,62250.0,0.004]
[1728469122687,0.55118,62251.0,62250.0,0.004]
[1728469125179,0.91198,62251.0,62250.0,0.004]
[1728469129386,1.51198,62251.0,62250.0,0.004]
[1728469129588,0.91198,62251.0,62250.0,0.004]
[1728469130686,1.01900539,62251.0,62250.0,0.004]
[1728469132580,0.91198,62251.0,62250.0,0.004]
[1728469132986,0.19038,62251.0,62250.0,0.004]
[1728469133182,0.91198,62251.0,62250.0,0.004]
[1728469133592,1.01900539,62251.0,62250.0,0.004]
[1728469135290,0.080384,62248.0,62243.0,0.0037]
[1728469135496,0.080391,62242.0,62241.0,0.031]
[1728469135694,0.24974575,62242.0,62241.0,0.031]
[1728469137596,0.200391,62242.0,62241.0,0.031]
[1728469137790,0.201391,62242.0,62241.0,0.042]
[1728469139496,0.201391,62242.0,62241.0,0.048]
[1728469139497,0.202391,62242.0,62241.0,0.048]
[1728469140991,0.563191,62242.0,62241.0,0.048]
[1728469144484,0.563191,62242.0,62241.0,0.04796]
[1728469144683,0.563191,62242.0,62241.0,0.04784]
[1728469144895,0.563191,62242.0,62241.0,0.248233]
[1728469146196,0.563191,62242.0,62241.0,0.097393]
[1728469152400,0.563191,62242.0,62241.0,0.017]
[1728469152596,0.6702173,62242.0,62241.0,0.017]
[1728469153997,0.6702173,62242.0,62237.0,0.00088]
[1728469154308,0.080399,62236.0,62235.0,0.01604]
[1728469154506,0.3074253,62236.0,62235.0,0.01604]
[1728469156002,0.3084253,62236.0,62235.0,0.02404]
[1728469157100,0.3094253,62236.0,62235.0,0.02404]
[1728469158003,0.6702253,62236.0,62235.0,0.02404]
[1728469159004,0.080411,62227.0,62221.0,0.0043]
[1728469159307,0.080419,62222.0,62221.0,0.080418]
[1728469159508,0.61790216,62222.0,62221.0,0.080378]
[1728469159694,0.72493476,62222.0,62221.0,0.080378]
[1728469160401,0.49057417,62222.0,62221.0,0.080378]
[1728469160594,0.40097858,62222.0,62221.0,0.20295034]
[1728469160800,0.40197858,62222.0,62221.0,0.20295034]
[1728469161599,0.40297858,62222.0,62221.0,0.20295034]
[1728469161903,0.40297858,62222.0,62221.0,0.20295032]
[1728469163302,0.04217858,62222.0,62221.0,0.20295032]
[1728469163515,0.40297858,62222.0,62221.0,0.20295032]
[1728469164400,0.40297858,62222.0,62221.0,0.283141]
[1728469166402,0.40297858,62222.0,62221.0,0.16056868]
[1728469167403,0.40297858,62222.0,62221.0,0.080378]
[1728469168029,0.40297858,62222.0,62221.0,0.08019068]
[1728469168213,0.080419,62221.0,62220.0,0.08019068]
[1728469168505,0.12,62221.0,62220.0,0.20276409]
[1728469168705,0.12,62221.0,62220.0,0.08019068]
[1728469169707,0.20242,62221.0,62220.0,0.08042]
[1728469169912,0.08042,62220.0,62219.0,0.08019068]
[1728469170213,0.08042,62220.0,62219.0,0.20276445]
[1728469170413,0.08042,62220.0,62218.0,1.28048436]
[1728469170414,0.080421,62219.0,62218.0,1.36067504]
[1728469170602,0.200421,62219.0,62218.0,1.48240928]
[1728469171409,0.080424,62217.0,62216.0,0.08014428]
[1728469171603,0.080424,62217.0,62211.0,0.01608]
[1728469171604,0.08043,62212.0,62211.0,0.01608]
[1728469171805,0.66123,62212.0,62211.0,0.01608]
[1728469172207,0.66123,62212.0,62211.0,0.08020687]
[1728469172913,0.66123,62212.0,62211.0,0.01608]
[1728469173218,0.66123,62212.0,62211.0,0.08020687]
[1728469173413,0.66123,62212.0,62211.0,0.01608]
[1728469173618,0.66223,62212.0,62211.0,0.01608]
[1728469174013,0.66323,62212.0,62211.0,0.06414653]
[1728469174315,0.66323,62212.0,62211.0,0.06413614]
[1728469174524,0.66323,62212.0,62211.0,0.06405614]
[1728469174817,0.66323,62212.0,62211.0,0.016]
[1728469175111,0.66323,62212.0,62209.0,0.04805614]
[1728469175112,0.080433,62210.0,62209.0,0.04805614]
[1728469175317,0.180433,62210.0,62209.0,0.04805614]
[1728469175721,0.1,62210.0,62206.0,0.08284946]
[1728469175911,0.561237,62207.0,62206.0,0.08284946]
[1728469176221,0.441237,62207.0,62206.0,0.08284946]
[1728469176423,0.561237,62207.0,62206.0,0.08284946]
[1728469176811,0.561237,62207.0,62206.0,0.00241146]
[1728469177015,0.551237,62207.0,62206.0,0.00241146]
[1728469177318,0.5928,62207.0,62200.0,0.5037]
[1728469177510,0.561244,62201.0,62200.0,0.580446]
[1728469180018,0.562244,62201.0,62200.0,0.580446]
[1728469180215,0.563244,62201.0,62200.0,0.580446]
[1728469182708,0.563244,62201.0,62200.0,0.64457287]
[1728469182912,0.562244,62201.0,62200.0,0.64457287]
[1728469183112,0.613244,62201.0,62200.0,0.64457287]
[1728469183315,0.613244,62201.0,62200.0,0.580446]
[1728469183715,0.611244,62201.0,62200.0,0.580446]
[1728469183915,0.612244,62201.0,62200.0,0.580446]
[1728469185610,0.611244,62201.0,62200.0,0.580446]
[1728469189118,0.441244,62201.0,62200.0,0.580446]
[1728469189625,0.3608,62201.0,62200.0,0.82305305]
[1728469189817,0.441244,62201.0,62200.0,0.82305305]
[1728469190423,0.3608,62201.0,62200.0,0.82305305]
[1728469190853,0.3608,62201.0,62200.0,0.700446]
[1728469192918,0.3645,62205.0,62200.0,0.700446]
[1728469193118,0.3645,62205.0,62204.0,0.080441]
[1728469193319,0.3608,62205.0,62204.0,0.080441]
[1728469193728,0.3608,62205.0,62204.0,0.113641]
[1728469196030,0.3618,62205.0,62204.0,0.113641]
[1728469196928,0.002,62205.0,62204.0,0.113641]
[1728469197123,0.3628,62205.0,62204.0,0.113641]
[1728469197725,0.31450015,62205.0,62204.0,0.23624214]
[1728469198333,0.25815031,62205.0,62204.0,0.38546861]
[1728469199128,0.25815031,62205.0,62204.0,0.23624214]
[1728469199327,0.25815031,62205.0,62204.0,0.38546858]
[1728469199633,0.080438,62206.0,62205.0,0.080439]
[1728469199833,0.080438,62206.0,62205.0,0.20304014]
[1728469200429,0.4818,62207.0,62205.0,0.27182758]
[1728469200623,0.3608,62207.0,62206.0,0.35225931]
[1728469201431,0.3808,62207.0,62206.0,0.35225931]
[1728469201734,0.461237,62207.0,62206.0,0.35225931]
[1728469202330,0.3808,62207.0,62206.0,0.35225931]
[1728469202530,0.3808,62207.0,62206.0,0.20303631]
[1728469202729,0.441237,62207.0,62206.0,0.20303631]
[1728469203235,0.444237,62207.0,62206.0,0.35225905]
[1728469203440,0.447237,62207.0,62206.0,0.35225905]
[1728469204535,0.447237,62207.0,62206.0,0.35225858]
[1728469205531,0.567237,62207.0,62206.0,0.35225858]
[1728469205735,0.52698815,62207.0,62206.0,0.080438]
[1728469209134,0.206437,62207.0,62206.0,0.080438]
[1728469209613,0.080443,62204.0,62203.0,0.080442]
[1728469209755,0.200443,62204.0,62203.0,0.080442]
[1728469210051,0.561243,62204.0,62203.0,0.080442]
[1728469210250,0.561243,62204.0,62200.0,0.50084]
[1728469210461,0.200444,62201.0,62200.0,0.580445]
[1728469211360,0.200444,62201.0,62200.0,0.5]
[1728469212759,0.200444,62201.0,62200.0,0.62361518]
[1728469213954,0.561244,62201.0,62200.0,0.62361518]
[1728469216050,0.200444,62201.0,62200.0,0.62361518]
[1728469216265,0.671244,62201.0,62200.0,0.62361518]
[1728469216658,0.70028057,62201.0,62200.0,0.62361518]
[1728469217768,0.70028057,62201.0,62200.0,0.70400661]
[1728469218263,0.70028057,62201.0,62200.0,0.58139143]
[1728469220367,0.70028057,62201.0,62200.0,0.501]
[1728469227868,0.70028057,62201.0,62200.0,0.70401219]
[1728469228073,0.70028057,62201.0,62200.0,0.7039641]
[1728469228274,0.70028057,62201.0,62200.0,0.70396421]
[1728469228465,0.70028057,62201.0,62200.0,0.62362076]
[1728469229263,0.58028057,62201.0,62200.0,0.70406676]
[1728469229471,0.70028057,62201.0,62200.0,0.62362076]
[1728469233075,0.70028057,62201.0,62200.0,0.70406676]
[1728469233966,0.70028057,62201.0,62200.0,0.70406389]
[1728469236873,0.33948057,62201.0,62200.0,0.70406389]
[1728469237074,0.70028057,62201.0,62200.0,0.70406389]
[1728469237271,0.70028057,62201.0,62200.0,0.62361789]
[1728469238476,0.58028057,62201.0,62200.0,0.70406389]
[1728469238773,0.70028057,62201.0,62200.0,0.70406389]
[1728469238970,0.70028057,62201.0,62200.0,0.70406446]
[1728469239268,0.33948057,62201.0,62200.0,0.70406446]
[1728469239573,0.70028057,62201.0,62200.0,0.62361846]
[1728469241787,0.58028057,62201.0,62200.0,0.62361846]
[1728469241976,0.70028057,62201.0,62200.0,0.62361846]
[1728469242981,0.70028057,62201.0,62200.0,0.501]
[1728469246584,0.33948057,62201.0,62200.0,0.501]
[1728469246820,0.70028057,62201.0,62200.0,0.501]
[1728469247492,0.70028057,62201.0,62200.0,0.581446]
[1728469247983,0.33948057,62201.0,62200.0,0.581446]
[1728469248289,0.70028057,62201.0,62200.0,0.581446]
[1728469249481,0.70028057,62201.0,62200.0,0.501]
[1728469250887,0.66002539,62201.0,62200.0,0.62361729]
[1728469252893,0.29922539,62201.0,62200.0,0.62361729]
[1728469253193,0.66002539,62201.0,62200.0,0.62361729]
[1728469253691,0.29922539,62201.0,62200.0,0.62361729]
[1728469254189,0.66002539,62201.0,62200.0,0.62361729]
[1728469255792,0.29922539,62201.0,62200.0,0.62361729]
[1728469255985,0.66002539,62201.0,62200.0,0.62361729]
[1728469257285,0.29922539,62201.0,62200.0,0.62361729]
[1728469257485,0.66002539,62201.0,62200.0,0.62361729]
[1728469257689,0.66002539,62201.0,62200.0,0.7728646]
[1728469259788,0.29922539,62201.0,62200.0,0.7728646]
[1728469259990,0.66002539,62201.0,62200.0,0.7728646]
[1728469262796,0.66002539,62201.0,62200.0,0.77286695]
[1728469262992,0.29922539,62201.0,62200.0,0.77286695]
[1728469263191,0.66002539,62201.0,62200.0,0.77286695]
[1728469263394,0.66002539,62201.0,62200.0,0.6236189]
[1728469263586,0.66002539,62201.0,62200.0,0.72021928]
[1728469265889,0.66002539,62201.0,62200.0,0.501]
[1728469274401,0.080451,62196.0,62194.0,0.08042121]
[1728469274599,0.4808,62195.0,62188.0,0.0037]
[1728469274900,0.080461,62188.0,62187.0,0.00241194]
[1728469275102,0.190461,62188.0,62187.0,0.12505304]
[1728469276204,0.190461,62188.0,62187.0,0.12605304]
[1728469276205,0.191461,62188.0,62187.0,0.12605304]
[1728469277305,0.191461,62188.0,62187.0,0.12605513]
[1728469278014,0.080466,62184.0,62182.0,0.09660038]
[1728469278207,0.080466,62184.0,62174.0,0.0037]
[1728469278208,0.080473,62179.0,62174.0,0.0037]
[1728469278397,0.080481,62173.0,62172.0,0.00241278]
[1728469279405,0.200481,62173.0,62172.0,0.00237278]
[1728469279601,0.200481,62173.0,62165.0,0.06422253]
[1728469279602,0.08049,62166.0,62165.0,0.06422253]
[1728469279904,0.080492,62164.0,62163.0,0.06422427]
[1728469280105,0.080494,62163.0,62162.0,0.06422427]
[1728469280306,0.12,62163.0,62161.0,0.06422427]
[1728469280514,0.080499,62160.0,62157.0,0.14472527]
[1728469280703,0.12,62158.0,62157.0,0.14472527]
[1728469281016,0.12,62158.0,62157.0,0.080501]
[1728469281307,0.12,62158.0,62157.0,0.1446409]
[1728469281506,0.12,62158.0,62157.0,0.080501]
[1728469281897,0.12,62158.0,62157.0,0.12856578]
[1728469282302,0.121,62158.0,62157.0,0.12856578]
[1728469282602,0.121,62158.0,62155.0,0.04806478]
[1728469282801,0.12,62156.0,62154.0,0.04806478]
[1728469283009,0.4808,62155.0,62154.0,0.04806478]
[1728469283222,0.080505,62154.0,62153.0,0.04806478]
[1728469283507,0.080509,62152.0,62150.0,0.04806478]
[1728469283704,0.12,62151.0,62150.0,0.04806478]
[1728469284507,0.12,62151.0,62149.0,0.080511]
[1728469284811,0.200509,62151.0,62149.0,0.080511]
[1728469285114,0.201509,62151.0,62149.0,0.080511]
[1728469285299,0.201509,62151.0,62150.0,0.08051]
[1728469285701,0.201509,62151.0,62145.0,0.12]
[1728469285702,0.080512,62149.0,62145.0,0.04794694]
[1728469285908,0.080517,62145.0,62144.0,0.080517]
[1728469286103,0.12,62146.0,62144.0,0.080517]
[1728469286297,0.080521,62143.0,62142.0,0.08052]
[1728469286497,0.080521,62143.0,62141.0,0.01596]
[1728469286498,0.080521,62142.0,62141.0,0.01596]
[1728469286698,0.080521,62142.0,62141.0,0.096482]
[1728469288012,0.12,62143.0,62141.0,0.096482]
[1728469288403,0.080521,62142.0,62141.0,0.096482]
[1728469288604,0.082521,62142.0,62141.0,0.096482]
[1728469289009,0.082521,62142.0,62141.0,0.01596]